bitfinex/quotes_SOLUSD_20250612
["timestamp","ask_amount","ask_price","bid_price","bid_amount"]
[1749760654130,30.12210638,154.52,154.46,12.7286]
[1749760654131,26.0,154.5,154.46,6.46]
[1749760654353,30.12210638,154.48,154.47,27.74]
[1749760654546,30.12210638,154.48,154.44,18.64964886]
[1749760654751,30.12210638,154.47,154.45,27.74]
[1749760655139,6.47416806,154.46,154.45,46.38964886]
[1749760655764,6.47416806,154.46,154.45,46.673972]
[1749760657240,6.47374894,154.47,154.46,18.933972]
[1749760658336,36.59585532,154.47,154.46,18.933972]
[1749760658756,36.59585532,154.47,154.46,46.673972]
[1749760658965,6.47374894,154.47,154.46,76.79607838]
[1749760659131,6.47374894,154.47,154.46,28.02432314]
[1749760659132,30.12210638,154.47,154.46,28.02432314]
[1749760659339,22.6553355,154.49,154.46,28.02432314]
[1749760659539,22.6553355,154.49,154.47,18.64964886]
[1749760659748,52.77744188,154.49,154.47,18.64964886]
[1749760659944,6.47291086,154.49,154.47,18.64964886]
[1749760660148,6.47291086,154.49,154.48,0.28432314]
[1749760661154,6.47291086,154.49,154.48,46.673972]
[1749760662045,30.12210638,154.51,154.5,0.28432314]
[1749760662046,6.472073,154.51,154.5,0.28432314]
[1749760662345,36.59417938,154.51,154.5,27.74]
[1749760662549,6.472073,154.51,154.5,27.74]
[1749760662735,36.59417938,154.51,154.5,27.74]
[1749760663358,6.472073,154.51,154.5,46.673972]
[1749760663755,46.29908004,154.55,154.51,18.933972]
[1749760663968,6.47081661,154.54,154.52,27.74]
[1749760664168,6.47081661,154.54,154.53,18.933972]
[1749760664666,6.46997929,154.56,154.53,49.05607838]
[1749760664840,6.46997929,154.56,154.55,18.933972]
[1749760665045,6.46997929,154.56,154.55,49.05607838]
[1749760665247,6.46997929,154.56,154.55,18.933972]
[1749760665749,16.17067972,154.61,154.55,49.05607838]
[1749760665971,36.59041168,154.6,154.57,18.933972]
[1749760666268,22.63906856,154.6,154.58,27.74]
[1749760667566,6.4683053,154.6,154.58,57.86210638]
[1749760667737,6.4683053,154.6,154.59,18.933972]
[1749760668145,6.46788694,154.61,154.59,18.933972]
[1749760668347,6.46788694,154.61,154.6,46.673972]
[1749760670260,6.46746863,154.62,154.6,46.673972]
[1749760670777,6.46746863,154.62,154.61,18.933972]
[1749760670974,6.46746863,154.62,154.6,27.74]
[1749760671292,6.46746863,154.62,154.6,46.673972]
[1749760671293,30.12210638,154.61,154.6,46.673972]
[1749760671460,6.46746863,154.62,154.6,46.673972]
[1749760671660,30.12210638,154.61,154.6,46.673972]
[1749760671893,36.58957501,154.62,154.6,46.673972]
[1749760672265,6.46746863,154.62,154.6,46.673972]
[1749760672464,36.58957501,154.62,154.6,46.673972]
[1749760673174,30.12210638,154.61,154.6,27.74]
[1749760673492,52.75824659,154.62,154.6,27.72]
[1749760673996,30.12210638,154.61,154.6,27.72]
[1749760674193,38.98853231,154.61,154.6,27.72]
[1749760674371,38.98842278,154.61,154.6,27.72]
[1749760674880,36.58999332,154.61,154.6,27.72]
[1749760675080,38.98848246,154.61,154.6,27.72]
[1749760675287,8.86640293,154.61,154.6,27.72]
[1749760675590,6.46788694,154.61,154.6,46.653972]
[1749760676194,22.63614021,154.62,154.6,46.653972]
[1749760676380,22.63614021,154.62,154.61,18.933972]
[1749760676700,6.46746863,154.62,154.61,18.933972]
[1749760677782,6.46705037,154.63,154.61,18.933972]
[1749760677990,6.46705037,154.63,154.62,46.653972]
[1749760678285,8.86681794,154.63,154.62,46.653972]
[1749760678486,8.86685325,154.63,154.62,46.653972]
[1749760678672,6.46705037,154.63,154.62,46.653972]
[1749760679782,6.46672479,154.64,154.62,76.77607838]
[1749760679968,46.28511386,154.68,154.63,49.19823995]
[1749760679969,6.46579593,154.66,154.63,49.19823995]
[1749760680169,8.86622156,154.66,154.65,18.933972]
[1749760680464,6.46579593,154.66,154.65,18.933972]
[1749760681300,36.58790231,154.66,154.64,27.72]
[1749760681494,48.63028577,154.66,154.65,27.72]
[1749760681668,48.63028577,154.66,154.51,6.1267]
[1749760681669,26.0,154.61,154.51,6.1267]
[1749760681994,30.12210638,154.55,154.52,28.02]
[1749760682202,22.63760429,154.61,154.52,58.14210638]
[1749760682494,26.0,154.58,154.53,18.64964886]
[1749760682682,30.12210638,154.59,154.55,18.64964886]
[1749760682992,30.12210638,154.59,154.58,0.14216157]
[1749760683201,26.0,154.59,154.58,46.81181043]
[1749760683404,26.0,154.59,154.58,46.953972]
[1749760683571,26.0,154.59,154.58,28.02]
[1749760683772,32.46872372,154.59,154.58,28.02]
[1749760684489,62.5908301,154.59,154.58,28.02]
[1749760684693,61.5694256,154.59,154.58,28.02]
[1749760684905,31.44731922,154.59,154.58,28.02]
[1749760685409,61.5694256,154.59,154.58,28.02]
[1749760685815,31.44731922,154.59,154.58,28.02]
[1749760685985,6.4683435,154.6,154.59,18.79181043]
[1749760686176,22.63910676,154.6,154.45,5.26278571]
[1749760686377,22.63910676,154.6,154.53,18.64964886]
[1749760686606,26.0,154.59,154.54,30.12210638]
[1749760686910,26.0,154.59,154.53,18.64964886]
[1749760686911,6.4683435,154.6,154.57,30.12210638]
[1749760687092,6.4683435,154.6,154.55,29.54]
[1749760687093,6.4683435,154.6,154.59,18.933972]
[1749760687284,6.4683435,154.6,154.59,48.473972]
[1749760687692,6.46746863,154.62,154.6,0.28432314]
[1749760687896,6.46746863,154.62,154.61,18.933972]
[1749760688493,6.46746863,154.62,154.61,0.28432314]
[1749760688891,6.46690163,154.64,154.62,18.933972]
[1749760689090,6.46690163,154.64,154.63,78.55607838]
[1749760689301,6.46690163,154.64,154.63,48.433972]
[1749760689604,31.69240638,154.68,154.64,18.933972]
[1749760689802,57.69240638,154.68,154.64,18.933972]
[1749760690112,6.4653779,154.67,154.64,18.933972]
[1749760690294,6.4653779,154.67,154.64,49.05607838]
[1749760690490,6.4653779,154.67,154.64,18.933972]
[1749760690810,6.4653779,154.67,154.64,49.05607838]
[1749760691382,6.46495991,154.68,154.65,30.12210638]
[1749760691584,6.46495991,154.68,154.66,29.54]
[1749760692212,6.46495991,154.68,154.67,18.933972]
[1749760693611,6.46454198,154.69,154.67,18.933972]
[1749760693898,6.46454198,154.69,154.62,36.40520638]
[1749760693899,6.46454198,154.69,154.68,78.57607838]
[1749760694106,6.46454198,154.69,154.68,48.453972]
[1749760696097,6.46454198,154.69,154.68,29.52]
[1749760696303,52.74800332,154.69,154.64,30.26426795]
[1749760696507,30.12210638,154.68,154.65,48.393972]
[1749760697016,52.74800332,154.69,154.65,48.10964886]
[1749760697220,30.12210638,154.68,154.65,48.10964886]
[1749760697800,6.4653779,154.67,154.65,48.10964886]
[1749760698698,6.4653779,154.67,154.66,29.42]
[1749760699508,6.4653779,154.67,154.66,48.353972]
[1749760699717,6.46454198,154.69,154.67,18.933972]
[1749760699921,6.46454198,154.69,154.68,78.45607838]
[1749760700314,6.46454198,154.69,154.68,48.333972]
[1749760700516,6.46454198,154.69,154.68,78.45607838]
[1749760700998,6.46370628,154.71,154.69,18.933972]
[1749760701206,6.46370628,154.71,154.7,48.313972]
[1749760702035,22.62218801,154.72,154.7,48.313972]
[1749760702722,22.62218801,154.72,154.71,18.933972]
[1749760703303,22.62218801,154.72,154.7,29.38]
[1749760704103,52.74429439,154.72,154.7,29.38]
[1749760704509,22.62218801,154.72,154.7,29.38]
[1749760704801,52.74429439,154.72,154.7,29.38]
[1749760705009,52.74429439,154.72,154.68,18.933972]
[1749760705225,52.74429439,154.72,154.69,29.36]
[1749760705819,30.12210638,154.7,154.68,18.933972]
[1749760706038,48.62218801,154.72,154.69,29.32]
[1749760706327,56.12210638,154.71,154.69,29.32]
[1749760707034,22.62218801,154.72,154.7,29.3]
[1749760707244,1.6578,154.7,154.58,6.0526]
[1749760707443,26.0,154.67,154.59,30.58]
[1749760707612,11.6578,154.7,154.6,30.6]
[1749760707613,30.12210638,154.63,154.6,30.6]
[1749760707943,6.46705037,154.63,154.6,30.6]
[1749760708145,6.46705037,154.63,154.6,60.72210638]
[1749760708346,6.46705037,154.63,154.62,49.05607838]
[1749760708716,6.46705037,154.63,154.62,49.35181043]
[1749760708915,6.46705037,154.63,154.62,30.56]
[1749760709428,36.58915675,154.63,154.62,30.56]
[1749760710218,6.46705037,154.63,154.62,30.56]
[1749760710955,6.46705037,154.63,154.53,30.12210638]
[1749760710956,26.0,154.6,154.53,30.12210638]
[1749760711156,30.12210638,154.59,154.56,18.64964886]
[1749760711321,27.6368,154.62,154.57,30.64]
[1749760711633,30.12210638,154.59,154.57,30.64]
[1749760712014,6.46914219,154.58,154.57,30.64]
[1749760712210,6.46914219,154.58,154.46,44.68]
[1749760712211,22.64199766,154.58,154.52,18.64964886]
[1749760712415,22.64199766,154.58,154.53,30.66]
[1749760712612,22.64199766,154.58,154.51,18.64964886]
[1749760712613,30.12210638,154.54,154.51,18.64964886]
[1749760712840,22.64199766,154.58,154.47,9.7374]
[1749760712841,26.0,154.55,154.47,9.7374]
[1749760713045,30.12210638,154.53,154.47,9.7374]
[1749760713338,26.0,154.55,154.48,30.78]
[1749760713339,30.12210638,154.51,154.48,30.78]
[1749760713544,26.0,154.55,154.5,0.28432314]
[1749760713838,30.12210638,154.53,154.51,30.82]
[1749760714044,6.47165415,154.52,154.51,30.82]
[1749760714354,22.65078953,154.52,154.48,30.88]
[1749760714515,30.12210638,154.51,154.48,30.88]
[1749760715225,22.65078953,154.52,154.48,30.88]
[1749760715613,6.47165415,154.52,154.5,0.14216157]
[1749760715818,36.59376053,154.52,154.51,31.44]
[1749760716312,6.47165415,154.52,154.51,31.44]
[1749760717037,6.47165415,154.52,154.51,31.72432314]
[1749760718341,6.47165415,154.52,154.51,31.44]
[1749760718342,36.59376053,154.52,154.51,31.44]
[1749760718541,52.77289591,154.52,154.51,31.4]
[1749760718745,22.65078953,154.52,154.51,31.4]
[1749760718937,6.47165415,154.52,154.51,80.45607838]
[1749760719137,6.47165415,154.52,154.51,50.333972]
[1749760719319,6.47165415,154.52,154.51,31.68432314]
[1749760720027,6.47165415,154.52,154.51,31.4]
[1749760720347,30.12210638,154.53,154.51,31.4]
[1749760720646,22.64785815,154.54,154.51,31.4]
[1749760720952,22.64785815,154.54,154.52,0.28432314]
[1749760721154,22.64785815,154.54,154.51,31.4]
[1749760721324,52.76996453,154.54,154.51,31.4]
[1749760722442,22.64785815,154.54,154.51,31.4]
[1749760722647,52.76996453,154.54,154.51,31.4]
[1749760722882,22.64785815,154.54,154.51,31.4]
[1749760723252,52.76996453,154.54,154.51,31.4]
[1749760723579,30.12210638,154.53,154.51,31.4]
[1749760723743,22.64785815,154.54,154.51,31.4]
[1749760723744,52.76996453,154.54,154.51,31.4]
[1749760724554,22.64785815,154.54,154.51,31.4]
[1749760724848,22.64785815,154.54,154.52,0.28432314]
[1749760725280,52.76996453,154.54,154.52,0.28432314]
[1749760725452,30.12210638,154.53,154.52,0.28432314]
[1749760725654,30.12210638,154.53,154.51,31.4]
[1749760725879,22.64785815,154.54,154.51,31.4]
[1749760726050,30.12210638,154.53,154.51,31.4]
[1749760726266,22.64785815,154.54,154.52,0.28432314]
[1749760726656,52.76996453,154.54,154.52,0.28432314]
[1749760726878,22.64785815,154.54,154.52,0.28432314]
[1749760727049,6.47081661,154.54,154.53,49.05607838]
[1749760727947,6.46997929,154.56,154.54,18.933972]
[1749760728289,22.6441318,154.57,154.55,31.68432314]
[1749760728946,52.76623818,154.57,154.55,31.68432314]
[1749760729147,30.12210638,154.56,154.53,18.64964886]
[1749760729344,30.12210638,154.55,154.54,31.66432314]
[1749760729545,22.6441318,154.57,154.54,31.62432314]
[1749760729777,30.12210638,154.56,154.54,31.62432314]
[1749760730072,52.76623818,154.57,154.54,31.62432314]
[1749760730372,22.6441318,154.57,154.54,31.62432314]
[1749760730673,30.12210638,154.56,154.54,31.62432314]
[1749760730855,6.47039792,154.55,154.54,31.62432314]
[1749760731178,22.64639274,154.55,154.54,31.36]
[1749760731478,52.76849912,154.55,154.52,0.28432314]
[1749760731655,22.64639274,154.55,154.54,31.6]
[1749760733473,22.64639274,154.55,154.54,34.59618876]
[1749760734975,6.47039792,154.55,154.54,52.05226714]
[1749760735269,6.46956071,154.57,154.54,83.67442871]
[1749760735482,6.46956071,154.57,154.56,18.933972]
[1749760735858,6.46956071,154.57,154.56,49.05607838]
[1749760736474,6.4683053,154.6,154.56,49.19823995]
[1749760736786,22.63906856,154.6,154.58,18.933972]
[1749760738686,16.17076326,154.6,154.58,18.933972]
[1749760740362,6.46788694,154.61,154.59,61.42210638]
[1749760740564,16.16860455,154.63,154.6,18.933972]
[1749760740859,46.29071093,154.63,154.61,31.26]
[1749760741083,30.12210638,154.62,154.61,31.26]
[1749760741466,46.29071093,154.63,154.61,31.26]
[1749760741682,16.16860455,154.63,154.61,31.26]
[1749760741959,6.46663217,154.64,154.62,49.05607838]
[1749760742183,6.46663217,154.64,154.63,31.22]
[1749760742484,6.46663217,154.64,154.63,50.153972]
[1749760742654,22.63103718,154.66,154.63,50.153972]
[1749760742857,22.63103718,154.66,154.63,31.22]
[1749760743364,30.12210638,154.64,154.6,30.12210638]
[1749760743560,30.12210638,154.64,154.61,31.18]
[1749760743767,52.75314356,154.66,154.62,49.05607838]
[1749760744088,52.75314356,154.66,154.63,31.14]
[1749760744988,22.63103718,154.66,154.64,18.933972]
[1749760745185,22.63103718,154.66,154.65,31.12]
[1749760747594,22.63103718,154.66,154.65,50.053972]
[1749760747765,6.46579593,154.66,154.65,50.053972]
[1749760748990,6.4653779,154.67,154.65,50.053972]
[1749760749788,6.4653779,154.67,154.66,18.933972]
[1749760750375,6.4653779,154.67,154.66,38.99980531]
[1749760750875,22.62599358,154.69,154.66,18.933972]
[1749760751082,22.62599358,154.69,154.67,31.0]
[1749760751258,22.62599358,154.69,154.68,18.79181043]
[1749760751462,6.46454198,154.69,154.68,18.933972]
[1749760751878,6.46454198,154.69,154.68,30.96]
[1749760752278,22.62589694,154.69,154.68,30.96]
[1749760752496,6.46454198,154.69,154.68,49.893972]
[1749760752876,20.06583331,154.69,154.64,6.1847]
[1749760753092,6.46412411,154.7,154.65,30.98]
[1749760753093,20.06583331,154.67,154.65,30.98]
[1749760753294,54.94505493,154.7,154.66,30.98]
[1749760753508,2.39943568,154.69,154.66,30.98]
[1749760753719,20.06583331,154.67,154.66,30.98]
[1749760754011,56.59285493,154.7,154.66,30.98]
[1749760754184,20.06583331,154.67,154.66,30.98]
[1749760754812,22.62882265,154.67,154.66,30.96]
[1749760754987,42.69465596,154.67,154.66,30.96]
[1749760755813,42.69465596,154.67,154.63,0.28432314]
[1749760756023,20.06583331,154.64,154.61,18.64964886]
[1749760756186,20.06583331,154.63,154.61,18.64964886]
[1749760756386,54.95571215,154.67,154.6,18.64964886]
[1749760756587,20.06583331,154.64,154.61,30.9]
[1749760756811,20.06583331,154.65,154.62,18.933972]
[1749760757009,20.06583331,154.65,154.61,30.9]
[1749760757310,54.95571215,154.67,154.61,30.9]
[1749760757311,20.06583331,154.64,154.61,30.9]
[1749760757694,20.06583331,154.63,154.59,18.64964886]
[1749760757914,26.0,154.64,154.58,18.64964886]
[1749760757915,26.53372025,154.61,154.58,18.64964886]
[1749760758097,20.06583331,154.6,154.58,18.64964886]
[1749760758287,22.63760429,154.61,154.59,30.9]
[1749760758691,6.46788694,154.61,154.6,18.933972]
[1749760758895,26.53372025,154.61,154.59,30.9]
[1749760759214,6.46788694,154.61,154.59,30.9]
[1749760759512,6.46788694,154.61,154.6,18.933972]
[1749760759813,6.46746863,154.62,154.6,18.933972]
[1749760760720,26.53330194,154.62,154.6,18.933972]
[1749760760895,6.46746863,154.62,154.6,18.933972]
[1749760761191,26.53330194,154.62,154.6,18.933972]
[1749760761593,42.70197352,154.62,154.59,30.9]
[1749760762000,6.46746863,154.62,154.6,18.933972]
[1749760762607,26.53330194,154.62,154.6,18.933972]
[1749760764021,20.06583331,154.62,154.6,18.933972]
[1749760765739,20.06583331,154.63,154.6,18.933972]
[1749760765898,6.46746863,154.62,154.6,0.28432314]
[1749760766105,6.46746863,154.62,154.61,69.55548217]
[1749760766321,6.46746863,154.62,154.61,49.48964886]
[1749760767333,6.46746863,154.62,154.61,49.773972]
[1749760769601,6.46746863,154.62,154.57,30.7]
[1749760769602,54.97348337,154.62,154.57,30.7]
[1749760769799,20.06583331,154.58,154.55,18.64964886]
[1749760770038,6.46956071,154.57,154.56,18.64964886]
[1749760770203,6.46956071,154.57,154.56,49.56964886]
[1749760770511,6.46956071,154.57,154.54,2.99618876]
[1749760770512,22.6434625,154.57,154.54,2.99618876]
[1749760770706,22.6434625,154.57,154.55,30.92]
[1749760770906,42.70929581,154.57,154.55,30.92]
[1749760771602,22.6434625,154.57,154.55,30.92]
[1749760771826,42.70929581,154.57,154.55,30.96]
[1749760772141,26.5358126,154.56,154.55,30.96]
[1749760772822,26.5358126,154.56,154.54,33.97618876]
[1749760773224,6.46997929,154.56,154.54,2.99618876]
[1749760773445,28.94414985,154.56,154.54,2.99618876]
[1749760773618,26.5358126,154.56,154.54,2.99618876]
[1749760773816,2.40833751,154.55,154.54,2.99618876]
[1749760774118,2.40838877,154.55,154.54,2.99618876]
[1749760774317,8.87836806,154.56,154.54,2.99618876]
[1749760774621,8.87857229,154.56,154.55,50.133972]
[1749760774815,6.46997929,154.56,154.55,50.133972]
[1749760775341,36.23450489,154.62,154.56,0.42648471]
[1749760775522,36.23450489,154.62,154.59,0.28432314]
[1749760775720,2.40925294,154.61,154.6,31.22]
[1749760776046,22.47449705,154.61,154.6,31.22]
[1749760776217,20.06583331,154.61,154.6,31.22]
[1749760776539,22.47670767,154.61,154.6,31.22]
[1749760776725,2.41087436,154.61,154.6,50.153972]
[1749760777074,20.06583331,154.61,154.6,31.22]
[1749760777218,26.53372025,154.61,154.6,31.22]
[1749760777647,8.87894298,154.61,154.6,31.22]
[1749760777824,8.87906813,154.61,154.6,31.22]
[1749760778018,28.94467523,154.61,154.6,31.22]
[1749760778445,68.7034376,154.61,154.56,18.933972]
[1749760778647,20.06583331,154.59,154.57,31.36]
[1749760779029,20.06583331,154.58,154.54,2.99618876]
[1749760779247,6.46997929,154.56,154.54,2.99618876]
[1749760779433,6.46997929,154.56,154.55,31.32]
[1749760779757,26.5358126,154.56,154.55,31.32]
[1749760779921,26.5358126,154.56,154.54,2.99618876]
[1749760780119,2.41107557,154.55,154.54,2.99618876]
[1749760780319,22.47572073,154.55,154.54,2.99618876]
[1749760780520,2.40969536,154.55,154.54,2.99618876]
[1749760780727,22.47552867,154.55,154.54,2.99618876]
[1749760780943,22.47555827,154.55,154.54,2.99618876]
[1749760781142,22.47845488,154.55,154.54,2.99618876]
[1749760781462,28.94925538,154.55,154.54,2.99618876]
[1749760781757,26.53623123,154.55,154.54,2.99618876]
[1749760782044,26.53623123,154.55,154.54,34.29618876]
[1749760782045,28.94960944,154.55,154.54,34.29618876]
[1749760782247,28.95046843,154.55,154.54,34.29618876]
[1749760782583,28.95046843,154.55,154.54,2.99618876]
[1749760782860,28.95162384,154.55,154.54,2.99618876]
[1749760783060,28.95162375,154.55,154.54,2.99618876]
[1749760783237,28.95170468,154.55,154.54,2.99618876]
[1749760783651,28.95182638,154.55,154.54,2.99618876]
[1749760783863,26.53623123,154.55,154.54,2.99618876]
[1749760784063,8.88592954,154.55,154.54,2.99618876]
[1749760784267,28.95140061,154.55,154.54,2.99618876]
[1749760784467,28.95140204,154.55,154.54,2.99618876]
[1749760784842,28.95138808,154.55,154.54,2.99618876]
[1749760785051,8.88556579,154.55,154.54,2.99618876]
[1749760785259,28.950922,154.55,154.54,2.99618876]
[1749760785667,26.0,154.52,154.42,6.3231]
[1749760785967,46.06583331,154.48,154.38,7.9078]
[1749760786135,2.41360094,154.47,154.38,7.9078]
[1749760786339,2.41361077,154.46,154.38,7.9078]
[1749760786535,20.06583331,154.43,154.4,18.64964886]
[1749760786773,1.597,154.47,154.4,18.64964886]
[1749760786947,1.597,154.47,154.41,18.64964886]
[1749760787141,20.06583331,154.42,154.38,6.3231]
[1749760787467,26.0,154.45,154.39,18.64964886]
[1749760787468,22.66252265,154.44,154.39,18.64964886]
[1749760787665,2.41299929,154.43,154.38,18.64964886]
[1749760787871,2.41279966,154.43,154.39,18.64964886]
[1749760788045,2.41277854,154.43,154.4,0.42648471]
[1749760788362,28.95269876,154.44,154.4,0.42648471]
[1749760788570,2.4119938,154.43,154.4,20.49231802]
[1749760788758,2.41228814,154.43,154.4,20.49231802]
[1749760788950,6.47500647,154.44,154.4,0.42648471]
[1749760789342,6.47500647,154.44,154.41,18.64964886]
[1749760789653,6.47500647,154.44,154.43,18.933972]
[1749760789654,26.54083978,154.44,154.43,18.933972]
[1749760789857,6.47416806,154.46,154.43,38.99980531]
[1749760790163,6.47291086,154.49,154.46,0.28432314]
[1749760790369,6.47291086,154.49,154.48,18.933972]
[1749760791074,2.41415426,154.5,154.48,38.99980531]
[1749760791284,6.47165415,154.52,154.48,18.933972]
[1749760791578,2.41428497,154.51,154.49,20.06583331]
[1749760791761,6.47165415,154.52,154.5,18.933972]
[1749760791943,2.41430256,154.51,154.5,18.933972]
[1749760792143,2.41403029,154.51,154.5,18.933972]
[1749760792369,6.47165415,154.52,154.5,0.28432314]
[1749760792546,2.41414748,154.51,154.5,0.28432314]
[1749760792756,6.472073,154.51,154.5,0.28432314]
[1749760793363,6.472073,154.51,154.5,18.933972]
[1749760793745,30.15470049,154.52,154.48,0.14216157]
[1749760793942,30.15470049,154.52,154.5,0.28432314]
[1749760794374,30.15470049,154.51,154.49,18.64964886]
[1749760794554,22.64965532,154.53,154.48,33.42]
[1749760795177,30.15470049,154.52,154.48,33.42]
[1749760797892,6.4724919,154.5,154.48,18.933972]
[1749760798795,22.64932374,154.53,154.48,18.933972]
[1749760798970,30.15470049,154.51,154.48,18.933972]
[1749760799387,22.64932374,154.53,154.48,18.933972]
[1749760799668,30.15470049,154.51,154.48,18.933972]
[1749760800265,30.15470049,154.5,154.47,33.32]
[1749760800496,30.15470049,154.52,154.48,49.23083406]
[1749760800700,6.472073,154.51,154.48,49.23083406]
[1749760800895,30.15470049,154.51,154.49,18.64964886]
[1749760801079,30.15470049,154.5,154.47,33.14]
[1749760801278,30.15470049,154.5,154.48,18.933972]
[1749760801978,22.64932374,154.53,154.48,18.933972]
[1749760802181,52.80402423,154.53,154.48,49.08867249]
[1749760802491,6.47123535,154.53,154.49,0.14216157]
[1749760802694,52.80402423,154.53,154.51,18.933972]
[1749760803096,30.15470049,154.52,154.5,33.12]
[1749760803269,22.64932374,154.53,154.5,33.12]
[1749760803473,52.80402423,154.53,154.5,33.12]
[1749760803979,22.64932374,154.53,154.51,33.08]
[1749760804182,30.15470049,154.52,154.51,33.08]
[1749760804793,36.62635464,154.52,154.51,33.08]
[1749760805397,6.47165415,154.52,154.51,33.08]
[1749760805587,36.62635464,154.52,154.51,33.08]
[1749760806292,6.47165415,154.52,154.51,33.08]
[1749760806479,36.62635464,154.52,154.51,33.08]
[1749760806795,52.80549002,154.52,154.45,18.64964886]
[1749760806975,30.15470049,154.48,154.45,18.64964886]
[1749760807304,26.0,154.51,154.43,18.64964886]
[1749760807305,30.15470049,154.46,154.43,18.64964886]
[1749760807484,30.15470049,154.45,154.41,18.64964886]
[1749760807684,30.15470049,154.46,154.43,18.64964886]
[1749760807884,26.0,154.51,154.45,48.80434935]
[1749760808097,30.15470049,154.49,154.46,32.88]
[1749760808291,30.15470049,154.48,154.46,0.28432314]
[1749760808904,6.47374894,154.47,154.45,32.86]
[1749760809079,30.15470049,154.46,154.37,7.7847]
[1749760809283,30.15470049,154.45,154.42,18.64964886]
[1749760809480,56.15470049,154.46,154.43,32.88]
[1749760809793,30.15470049,154.46,154.43,32.88]
[1749760810214,30.15470049,154.46,154.43,0.14216157]
[1749760810377,30.15470049,154.45,154.44,32.86]
[1749760810587,22.65812131,154.47,154.44,32.86]
[1749760810911,52.8128218,154.47,154.44,32.86]
[1749760811477,22.65812131,154.47,154.44,32.86]
[1749760811684,30.15470049,154.46,154.44,51.793972]
[1749760811907,22.65812131,154.47,154.44,51.793972]
[1749760812074,30.15470049,154.46,154.44,51.793972]
[1749760813288,6.47458724,154.45,154.44,51.793972]
[1749760813600,22.66105535,154.45,154.42,0.28432314]
[1749760813804,22.66105535,154.45,154.44,32.72]
[1749760814180,42.78346432,154.45,154.44,32.72]
[1749760814398,22.66105535,154.45,154.44,32.72]
[1749760814991,42.78346432,154.45,154.44,32.72]
[1749760815295,6.47420463,154.46,154.43,32.66]
[1749760815496,20.12240897,154.45,154.43,32.66]
[1749760815901,22.6596248,154.46,154.43,32.66]
[1749760816489,26.5966136,154.46,154.44,18.933972]
[1749760817814,20.12240897,154.45,154.39,18.64964886]
[1749760817982,48.6596248,154.46,154.41,0.28432314]
[1749760818189,48.6596248,154.46,154.41,32.78432314]
[1749760818502,20.12240897,154.43,154.41,0.28432314]
[1749760818706,20.12240897,154.43,154.41,32.78432314]
[1749760819006,48.6596248,154.46,154.41,32.78432314]
[1749760819007,20.12240897,154.44,154.41,32.78432314]
[1749760819515,20.12240897,154.42,154.39,0.28432314]
[1749760819815,6.47626449,154.41,154.4,51.08964886]
[1749760820004,42.78933468,154.41,154.38,18.64964886]
[1749760820195,22.66692571,154.41,154.4,32.44]
[1749760820620,42.78933468,154.41,154.4,32.44]
[1749760821113,62.91174365,154.41,154.32,7.969]
[1749760821315,20.12240897,154.36,154.33,51.04964886]
[1749760821485,22.66692571,154.41,154.34,32.4]
[1749760821682,6.47710343,154.39,154.36,18.64964886]
[1749760821912,6.47710343,154.39,154.38,18.933972]
[1749760822213,20.12240897,154.42,154.38,18.933972]
[1749760822214,6.4766787,154.41,154.38,18.933972]
[1749760822416,6.47574456,154.43,154.4,39.05638097]
[1749760822633,26.59615791,154.47,154.42,39.05638097]
[1749760822918,6.47374894,154.47,154.42,18.933972]
[1749760823090,8.87179927,154.47,154.44,39.05638097]
[1749760823291,6.47374894,154.47,154.44,18.933972]
[1749760823788,6.47291086,154.49,154.44,19.07613357]
[1749760823988,45.17661074,154.49,154.46,18.933972]
[1749760824188,20.12240897,154.48,154.47,32.34]
[1749760824388,42.777597,154.49,154.47,32.34]
[1749760824626,2.39861412,154.48,154.47,32.34]
[1749760824829,6.47291086,154.49,154.47,32.34]
[1749760824999,8.8719492,154.49,154.47,32.34]
[1749760825199,28.99459681,154.49,154.47,32.34]
[1749760825414,2.39945209,154.48,154.47,32.34]
[1749760825620,36.64180452,154.49,154.47,32.34]
[1749760826102,6.47291086,154.49,154.47,32.34]
[1749760826491,8.87295139,154.5,154.48,18.933972]
[1749760826712,36.64138556,154.5,154.48,18.933972]
[1749760828003,30.16889366,154.49,154.47,32.34]
[1749760828215,30.16889366,154.48,154.47,32.34]